fUSD/lending_fUSD_20260205
["ID","MTS","AMOUNT","RATE_DAILY","PERIOD"]
[404536264,1770259846609,-500.0,0.000179,2]
[404536265,1770259846618,-500.0,0.000179,2]
[404536266,1770259846627,-440.11904009,0.000179,2]
[404536267,1770259846636,-203.91426758,0.00017918,2]
[404536268,1770259846646,-194.72792766,0.00017927,2]
[404536270,1770259846655,-200.0,0.00017943,2]
[404536272,1770259846666,-3232.65,0.00017948,2]
[404536274,1770259846676,-316.37724837,0.00017948,2]
[404536275,1770259846685,-500.59677683,0.0001797,2]
[404536276,1770259846695,-500.0,0.00017973,2]
[404536277,1770259846705,-327.04428197,0.00017973,2]
[404536279,1770259846714,-500.0,0.00017973,2]
[404536287,1770259846965,-500.0,0.00017973,2]
[404536288,1770259846983,-500.0,0.00017973,2]
[404536291,1770259846997,-500.0,0.00017973,2]
[404536293,1770259847006,-500.0,0.00017973,2]
[404536295,1770259847016,-500.0,0.00017973,2]
[404536297,1770259847025,-500.0,0.00017973,2]
[404536299,1770259847034,-500.0,0.00017973,2]
[404536301,1770259847043,-510.66603852,0.00017973,2]
[404536303,1770259847052,-500.0,0.00017973,2]
[404536305,1770259847061,-500.0,0.00017973,2]
[404536307,1770259847070,-500.0,0.00017973,2]
[404536308,1770259847079,-261.35058854,0.00017973,2]
[404536310,1770259847088,-500.0,0.00017973,2]
[404536312,1770259847097,-500.0,0.00017973,2]
[404536314,1770259847106,-500.0,0.00017973,2]
[404536316,1770259847115,-500.0,0.00017973,2]
[404536318,1770259847124,-500.0,0.00017973,2]
[404536320,1770259847133,-500.0,0.00017973,2]
[404536323,1770259847142,-500.0,0.00017973,2]
[404536325,1770259847152,-500.0,0.00017973,2]
[404536327,1770259847161,-500.0,0.00017973,2]
[404536328,1770259847170,-500.0,0.00017973,2]
[404536330,1770259847179,-500.0,0.00017973,2]
[404536332,1770259847188,-500.0,0.00017973,2]
[404536334,1770259847196,-500.0,0.00017973,2]
[404536336,1770259847205,-500.0,0.00017973,2]
[404536338,1770259847215,-500.0,0.00017973,2]
[404536340,1770259847223,-500.0,0.00017973,2]
[404536344,1770259847242,-500.0,0.00017973,2]
[404536346,1770259847252,-500.0,0.00017973,2]
[404536348,1770259847262,-500.0,0.00017973,2]
[404536350,1770259847272,-292.28447757,0.00017973,2]
[404536352,1770259847281,-500.0,0.00017973,2]
[404536354,1770259847290,-500.0,0.00017973,2]
[404536356,1770259847300,-500.0,0.00017973,2]
[404536358,1770259847309,-500.0,0.00017973,2]
[404536360,1770259847318,-500.63211416,0.00017973,2]
[404536362,1770259847328,-500.0,0.00017973,2]
[404536364,1770259847337,-500.0,0.00017973,2]
[404536366,1770259847346,-500.0,0.00017973,2]
[404536368,1770259847355,-500.0,0.00017973,2]
[404536370,1770259847364,-500.0,0.00017973,2]
[404536372,1770259847374,-500.0,0.00017973,2]
[404536375,1770259847384,-21138.8298913,0.0001799,3]
[404536377,1770259847394,-272.64181029,0.0001799,2]
[404536379,1770259847403,-151.0,0.00017997,2]
[404536381,1770259847411,-151.0,0.00017997,2]
[404536383,1770259847420,-200.0,0.00017998,2]
[404536385,1770259847429,-316.48489441,0.00017998,3]
[404536387,1770259847439,-150.0,0.00017999,2]
[404536389,1770259847448,-150.0,0.00017999,2]
[404536391,1770259847457,-150.0,0.00017999,2]
[404536393,1770259847466,-150.0,0.00017999,2]
[404536395,1770259847475,-150.0,0.00017999,2]
[404536397,1770259847487,-150.0,0.00017999,2]
[404536399,1770259847496,-152.38785425,0.00017999,2]
[404536401,1770259847506,-1011.14719668,0.00017999,5]
[404536403,1770259847516,-1011.14719668,0.00017999,5]
[404536405,1770259847526,-1011.14719668,0.00017999,5]
[404536407,1770259847535,-1011.14719668,0.00017999,5]
[404536409,1770259847544,-1011.14719667,0.00017999,5]
[404536411,1770259847555,-11667.28015427,0.00017999,2]
[404536413,1770259847564,-300.0,0.00017999,2]
[404536415,1770259847573,-300.0,0.00017999,2]
[404536417,1770259847582,-300.0,0.00017999,2]
[404536420,1770259847595,-300.0,0.00017999,2]
[404536422,1770259847608,-300.0,0.00017999,2]
[404536424,1770259847617,-154000.42511918,0.00018,2]
[404536430,1770259847666,-2187.31524543,0.00018,2]
[404536432,1770259847678,-11944.6315787,0.00018,2]
[404536435,1770259847688,-7317.1830909,0.00018,2]
[404536437,1770259847700,-6080.339652,0.00018,2]
[404536439,1770259847711,-2330.28575142,0.00018,2]
[404536442,1770259847726,-163875.93488004,0.00018,2]
[404536444,1770259847738,-1587.635991,0.00018,2]
[404536446,1770259847749,-3554.57757357,0.00018,2]
[404536448,1770259847760,-579.67372848,0.00018,2]
[404536451,1770259847771,-7201.00000001,0.00018,2]
[404536453,1770259847782,-404.73403491,0.00018,2]
[404536866,1770260223176,-300.0,0.00010263,2]
[404536971,1770260761557,-200.0,9.973e-05,2]
[404536972,1770260761585,-247.4479269,0.0001,2]
[404536973,1770260761614,-710.562,0.00010024,2]
[404536974,1770260761641,-151.0,0.00010059,2]
[404536975,1770260761671,-459.87454359,0.00010061,2]
[404536976,1770260761697,-1200.0,0.00010061,2]
[404536977,1770260761725,-300.0,0.00010061,2]
[404536978,1770260761755,-2013599.11552951,0.00010062,2]
[404536989,1770260856666,-151.0,9.833e-05,2]
[404537002,1770261032018,-1033.61,9.674e-05,2]
[404537003,1770261032028,-183.76507571,9.833e-05,2]
[404537004,1770261032075,-165.23492429,9.833e-05,2]
[404537007,1770261032087,-1605.14,9.886e-05,2]
[404537008,1770261032095,-980.25592604,0.0001,2]
[404537009,1770261032105,-272.64181029,0.00010052,2]
[404537010,1770261032115,-150.0,0.00010061,2]
[404537011,1770261032124,-300.0,0.00010061,2]
[404537012,1770261032133,-1200.0,0.00010061,2]
[404537013,1770261032143,-4653.8131427,0.00010062,2]
[404537014,1770261032154,-291.34490363,0.00010062,2]
[404537026,1770261032653,-454.69711136,0.00010062,2]
[404537027,1770261032665,-2450.9437083,0.00010062,2]
[404537028,1770261032676,-3711.58007246,0.00010062,2]
[404537029,1770261032698,-3668.11136025,0.00010062,2]
[404537030,1770261032710,-1618.69655315,0.00010062,2]
[404537032,1770261038104,-2500.0,9.962e-05,2]
[404537033,1770261038118,-429.6760141,0.0001,2]
[404537034,1770261038128,-4957.44002942,0.00010062,2]
[404537035,1770261038141,-7150.2,0.00010062,2]
[404537036,1770261038160,-354.0347142,0.00010062,2]
[404537037,1770261038172,-760.766732,0.00010062,2]
[404537038,1770261038183,-937.75855587,0.00010062,2]
[404537039,1770261038216,-3578.65,0.00010062,2]
[404537040,1770261038272,-357.8,0.00010062,2]
[404537113,1770261040181,-3210.48685374,0.00010062,2]
[404537114,1770261040241,-574.744,0.00010062,2]
[404537115,1770261040259,-337.28271781,0.00010062,2]
[404537116,1770261040290,-7.20214,0.00010062,2]
[404537117,1770261040300,-2307.9,0.00010062,2]
[404537118,1770261040311,-718.49495679,0.00010062,2]
[404537119,1770261040326,-718.9418,0.00010062,2]
[404537120,1770261040337,-5288.5435198,0.00010062,2]
[404537121,1770261040351,-1009284.5993271,0.00010062,2]
[404537140,1770261044750,-1834.94721582,0.00010062,2]
[404537141,1770261044939,-0.71038101,0.00010062,2]
[404537142,1770261044951,-583.3377,0.00010062,2]
[404537163,1770261046207,-7166.79999999,0.00010062,2]
[404537164,1770261046218,-2479.92067609,0.00010062,2]
[404537165,1770261046267,-519.90478272,0.00010062,2]
[404537166,1770261046279,-2685.27,0.00010062,2]
[404537167,1770261046323,-60429.02640571,0.00010062,2]
[404537168,1770261046335,-3448.53338177,0.00010062,2]
[404537169,1770261046346,-719.355,0.00010062,2]
[404537170,1770261046538,-1631.79951853,0.00010062,2]
[404537416,1770262202798,1000.0,0.00013699,7]
[404537425,1770262232240,-396.55,9.444e-05,2]
[404537428,1770262232260,-54.73744886,9.503e-05,2]
[404537433,1770262232296,-195.26255114,9.503e-05,2]
[404537435,1770262232306,-150.83737641,9.561e-05,2]
[404537561,1770262238352,-267.588,9.561e-05,2]
[404537662,1770262240384,-781.57462359,9.561e-05,2]
[404537663,1770262240394,-106.59356439,9.561e-05,2]
[404537664,1770262240441,-43.40643561,9.561e-05,2]
[404537665,1770262240450,-250.2285764,9.562e-05,2]
[404537666,1770262240499,-565.36964925,9.562e-05,2]
[404537667,1770262240554,-3258452.79566014,9.562e-05,2]
[404537669,1770262244922,-2514.59690037,9.562e-05,2]
[404537670,1770262244976,-1888.98823054,9.562e-05,2]
[404537762,1770262269253,245.0,9.562e-05,3]
[404537763,1770262269604,245.0,0.00011875,3]
[404537764,1770262328408,220.0,0.00011875,3]
[404537768,1770262388080,209.0,0.00011875,3]
[404537819,1770262448464,199.0,0.00011875,3]
[404537820,1770262506660,189.0,0.00011875,3]
[404537821,1770262572861,180.0,0.00011875,3]
[404537822,1770262628662,171.0,0.00011875,3]
[404537824,1770262689232,162.0,0.00011875,3]
[404537825,1770262748749,154.0,0.00011875,3]
[404537826,1770262806683,154.0,0.00011875,3]
[404537831,1770262869347,154.0,0.00011875,3]
[404537832,1770262927418,154.0,0.00011875,3]
[404537833,1770262992545,154.0,0.00011875,3]
[404537834,1770263046969,154.0,0.00011875,3]
[404537835,1770263108886,154.0,0.00011875,3]
[404537836,1770263167606,154.0,0.00011875,3]
[404537838,1770263226737,154.0,0.00011875,3]
[404537839,1770263288084,154.0,0.00011875,3]
[404537840,1770263349165,154.0,0.00011875,3]
[404537841,1770263411391,154.0,0.00011875,3]
[404537857,1770263431418,-1852.42,8.892e-05,2]
[404537859,1770263431427,-166.66,9.146e-05,2]
[404537860,1770263431436,-352.42,9.178e-05,2]
[404537864,1770263431472,-455.121696,9.178e-05,2]
[404537865,1770263431481,-2863.81060744,9.204e-05,2]
[404537867,1770263431490,-150.79,9.271e-05,2]
[404537868,1770263431501,-568.45,9.363e-05,2]
[404537870,1770263431510,-166.66,9.448e-05,2]
[404537872,1770263431519,-1200.0,9.495e-05,2]
[404537873,1770263431529,-1600.0,9.496e-05,2]
[404537875,1770263431539,-720.0,9.559e-05,2]
[404537877,1770263431548,-150.0,9.572e-05,2]
[404537878,1770263431557,-1539.11769656,9.573e-05,2]
[404537880,1770263431571,-2854.88230344,9.573e-05,2]
[404537881,1770263431581,-14611.7,9.573e-05,2]
[404537882,1770263431593,-9999.99,9.573e-05,2]
[404537883,1770263431603,-150.99,9.573e-05,2]
[404537884,1770263431613,-4999.99,9.573e-05,2]
[404537886,1770263431622,-26701.08,9.573e-05,2]
[404537888,1770263431632,-3186.13,9.573e-05,2]
[404537891,1770263431641,-1610.11,9.573e-05,2]
[404537894,1770263431650,-9999.99,9.573e-05,2]
[404537897,1770263431660,-3847.96,9.573e-05,2]
[404537900,1770263431672,-499.99,9.573e-05,2]
[404537901,1770263431682,-9999.99,9.573e-05,2]
[404537904,1770263431691,-5907.08,9.573e-05,2]
[404537906,1770263431701,-9999.99,9.573e-05,2]
[404537908,1770263431712,-2980.38,9.573e-05,2]
[404537909,1770263431721,-1335.68,9.573e-05,2]
[404537912,1770263431731,-9999.99,9.573e-05,2]
[404537913,1770263431740,-939.0,9.574e-05,2]
[404537916,1770263431751,-9999.99,9.592e-05,2]
[404537917,1770263431760,-299.99,9.592e-05,2]
[404537920,1770263431769,-999.99,9.592e-05,2]
[404537921,1770263431780,-41041.46177559,9.655e-05,2]
[404537924,1770263431792,-4225.46822441,9.655e-05,2]
[404537926,1770263431801,-1278.11849601,9.662e-05,2]
[404537935,1770263437643,-8431.39090399,9.662e-05,2]
[404537936,1770263437653,-2065.86392517,9.67e-05,2]
[404537937,1770263437695,-651.0,9.67e-05,2]
[404537938,1770263437707,-521.64708869,9.67e-05,2]
[404537939,1770263437721,-6756.13557786,9.67e-05,2]
[404537940,1770263437735,-6516.11837077,9.67e-05,2]
[404537941,1770263437803,-2884.8009104,9.67e-05,2]
[404537965,1770263439640,-915.76,9.67e-05,2]
[404537966,1770263439652,-292.5153534,9.67e-05,2]
[404537967,1770263439693,-1730.84596,9.67e-05,2]
[404537968,1770263439706,-5350.50281371,9.67e-05,2]
[404537969,1770263439716,-6037.10347939,9.67e-05,2]
[404537970,1770263439729,-2218.04471527,9.67e-05,2]
[404537971,1770263439742,-990.88773711,9.67e-05,2]
[404537972,1770263439759,-20753.95406823,9.67e-05,2]
[404537973,1770263439772,-19045.94,9.67e-05,2]
[404537974,1770263439784,-1000.0,9.676e-05,2]
[404537975,1770263439795,-101490.4536886,9.692e-05,2]
[404537976,1770263439807,-200.69621039,9.722e-05,2]
[404537977,1770263439818,-33298.1738,9.73e-05,2]
[404537978,1770263439830,-1000.0,9.73e-05,2]
[404537979,1770263439840,-294.0,9.733e-05,2]
[404537980,1770263439852,-166.66,9.75e-05,2]
[404537981,1770263439861,-193.49422272,9.782e-05,2]
[404537982,1770263439871,-500.0,9.782e-05,2]
[404537983,1770263439881,-301.95500035,9.782e-05,2]
[404537984,1770263439891,-250.0,9.782e-05,2]
[404537985,1770263439901,-322.43,9.862e-05,2]
[404537986,1770263439911,-6997.5987,9.973e-05,2]
[404537987,1770263439921,-500.0,0.0001,2]
[404537988,1770263439932,-200.0,0.0001,2]
[404537989,1770263439944,-200.0,0.0001,2]
[404537990,1770263439956,-151.0,0.0001,2]
[404537991,1770263439968,-500.0,0.0001,2]
[404537992,1770263439979,-151.0,0.0001,2]
[404537993,1770263439988,-500.0,0.0001,2]
[404537994,1770263439998,-151.0,0.0001,2]
[404537995,1770263440009,-151.0,0.0001,2]
[404537996,1770263440019,-500.0,0.0001,2]
[404537997,1770263440032,-151.0,0.0001,2]
[404537998,1770263440042,-500.0,0.0001,2]
[404537999,1770263440051,-500.0,0.0001,2]
[404538000,1770263440062,-151.0,0.0001,2]
[404538001,1770263440072,-151.0,0.0001,2]
[404538002,1770263440083,-500.0,0.0001,2]
[404538003,1770263440094,-151.0,0.0001,2]
[404538004,1770263440105,-500.0,0.0001,2]
[404538005,1770263440115,-151.0,0.0001,2]
[404538006,1770263440126,-151.0,0.0001,2]
[404538007,1770263440135,-500.0,0.0001,2]
[404538008,1770263440145,-151.0,0.0001,2]
[404538009,1770263440156,-151.0,0.0001,2]
[404538010,1770263440168,-500.0,0.0001,2]
[404538011,1770263440189,-151.0,0.0001,2]
[404538012,1770263440208,-151.0,0.0001,2]
[404538014,1770263440219,-500.0,0.0001,2]
[404538016,1770263440229,-151.0,0.0001,2]
[404538017,1770263440245,-151.0,0.0001,2]
[404538018,1770263440257,-151.0,0.0001,2]
[404538019,1770263440277,-500.0,0.0001,2]
[404538020,1770263440298,-151.0,0.0001,2]
[404538021,1770263440308,-151.0,0.0001,2]
[404538022,1770263440320,-500.0,0.0001,2]
[404538023,1770263440331,-151.0,0.0001,2]
[404538024,1770263440341,-151.0,0.0001,2]
[404538025,1770263440352,-151.0,0.0001,2]
[404538026,1770263440363,-151.0,0.0001,2]
[404538027,1770263440373,-151.0,0.0001,2]
[404538028,1770263440383,-151.0,0.0001,2]
[404538029,1770263440394,-151.0,0.0001,2]
[404538030,1770263440404,-151.0,0.0001,2]
[404538031,1770263440415,-151.0,0.0001,2]
[404538032,1770263440426,-151.0,0.0001,2]
[404538033,1770263440436,-151.0,0.0001,2]
[404538034,1770263440451,-151.0,0.0001,2]
[404538035,1770263440462,-500.0,0.0001,2]
[404538036,1770263440473,-500.0,0.0001,2]
[404538037,1770263440483,-500.0,0.0001,2]
[404538038,1770263440494,-500.0,0.0001,2]
[404538039,1770263440506,-500.0,0.0001,2]
[404538040,1770263440517,-500.0,0.0001,2]
[404538041,1770263440527,-500.0,0.0001,2]
[404538042,1770263440539,-500.0,0.0001,2]
[404538043,1770263440550,-500.0,0.0001,2]
[404538044,1770263440561,-500.0,0.0001,2]
[404538045,1770263440572,-500.0,0.0001,2]
[404538046,1770263440583,-166.66,0.00010052,2]
[404538047,1770263440594,-1000.0,0.00010061,2]
[404538048,1770263440608,-270.48249086,0.00010062,2]
[404538049,1770263440620,-151.0,0.00010062,2]
[404538050,1770263440630,-322.43,0.00010136,2]
[404538051,1770263440642,-500.0,0.00010163,2]
[404538052,1770263440652,-347.59446407,0.00010163,2]
[404538053,1770263440664,-14245.93,0.00010233,2]
[404538054,1770263440676,-500.0,0.00010274,2]
[404538055,1770263440687,-155.49,0.000103,2]
[404538056,1770263440698,-53048.0,0.00010329,2]
[404538057,1770263440710,-166.66,0.00010354,2]
[404538058,1770263440720,-322.43,0.0001041,2]
[404538059,1770263440731,-1680.0,0.00010445,2]
[404538060,1770263440741,-238.0,0.00010529,2]
[404538061,1770263440752,-500.0,0.00010548,2]
[404538062,1770263440764,-200.0,0.00010548,2]
[404538063,1770263440776,-200.0,0.00010548,2]
[404538064,1770263440787,-500.0,0.00010548,2]
[404538065,1770263440797,-500.0,0.0001063,2]
[404538066,1770263440808,-166.66,0.00010656,2]
[404538067,1770263440820,-1600.0,0.00010683,2]
[404538068,1770263440834,-322.43,0.00010684,2]
[404538069,1770263440845,-500.0,0.00010822,2]
[404538070,1770263440855,-2863.81060744,0.00010873,2]
[404538071,1770263440866,-1000.0,0.00010886,2]
[404538072,1770263440877,-2550.17704398,0.000109,2]
[404538073,1770263440887,-2550.17704393,0.000109,2]
[404538074,1770263440898,-322.43,0.00010958,2]
[404538075,1770263440909,-184.17,0.00010959,2]
[404538076,1770263440920,-150.0,0.00010959,2]
[404538077,1770263440931,-166.66,0.00010959,2]
[404538078,1770263440941,-150.0,0.00010959,2]
[404538079,1770263440952,-500.0,0.00011016,2]
[404538080,1770263440963,-166.66,0.00011068,2]
[404538081,1770263440973,-500.0,0.00011096,2]
[404538082,1770263440984,-200.0,0.00011096,2]
[404538083,1770263440994,-200.0,0.00011096,2]
[404538084,1770263441005,-500.0,0.00011096,2]
[404538085,1770263441016,-231.24,0.00011097,2]
[404538086,1770263441034,-13099.732759,0.00011099,2]
[404538087,1770263441056,-13099.73275899,0.00011099,2]
[404538088,1770263441075,-101490.4536886,0.00011101,2]
[404538089,1770263441086,-166.66,0.00011178,2]
[404538090,1770263441096,-4232.91482677,0.00011182,2]
[404538091,1770263441106,-322.43,0.00011232,2]
[404538092,1770263441117,-1859.66,0.00011233,2]
[404538093,1770263441128,-166.66,0.00011288,2]
[404538094,1770263441138,-502.96360645,0.0001137,2]
[404538095,1770263441149,-166.66,0.00011397,2]
[404538096,1770263441161,-13099.73275899,0.00011415,2]
[404538097,1770263441171,-328311.78084248,0.00011427,2]
[404538098,1770263441181,-501.0,0.00011452,2]
[404538099,1770263441192,-1070.0,0.00011489,2]
[404538100,1770263441201,-322.43,0.00011506,2]
[404538101,1770263441212,-166.66,0.00011507,2]
[404538102,1770263441223,-200.0,0.00011644,2]
[404538103,1770263441236,-200.0,0.00011644,2]
[404538104,1770263441246,-500.0,0.00011644,2]
[404538105,1770263441257,-322.43,0.0001178,2]
[404538106,1770263441268,-500.0,0.00011836,2]
[404538107,1770263441278,-1600.0,0.0001187,2]
[404538108,1770263441288,-2550.17704393,0.00011987,2]
[404538109,1770263441298,-322.43,0.00012054,2]
[404538110,1770263441308,-1000.0,0.00012096,2]
[404538111,1770263441319,-200.0,0.00012192,2]
[404538112,1770263441329,-204.16847478,0.00012192,2]
[404538113,1770263441339,-500.0,0.00012192,2]
[404538114,1770263441348,-322.43,0.00012328,2]
[404538115,1770263441358,-13099.73275899,0.00012341,2]
[404538116,1770263441368,-13421.0,0.00012441,2]
[404538117,1770263441378,-153.745102,0.00012509,2]
[404538118,1770263441387,-101490.4536886,0.00012509,2]
[404538119,1770263441400,-2863.81060744,0.00012542,2]
[404538120,1770263441415,-322.43,0.00012602,2]
[404538121,1770263441426,-233.22924952,0.0001274,2]
[404538122,1770263441436,-500.0,0.0001274,2]
[404538123,1770263441446,-2745.31545559,0.00012839,2]
[404538124,1770263441456,-322.43,0.00012876,2]
[404538125,1770263441467,-152579.0,0.000129,2]
[404538126,1770263441477,-1600.0,0.00013057,2]
[404538127,1770263441487,-322.43,0.0001315,2]
[404538128,1770263441497,-2550.17704393,0.0001317,2]
[404538129,1770263441511,-272.64181029,0.0001319,2]
[404538130,1770263441520,-13099.73275899,0.00013268,2]
[404538131,1770263441531,-500.0,0.00013288,2]
[404538132,1770263441541,-1000.0,0.00013305,2]
[404538133,1770263441551,-322.43,0.00013424,2]
[404538134,1770263441561,-3240.0,0.00013425,2]
[404538135,1770263441571,-1517.82906709,0.00013518,2]
[404538136,1770263441581,-1033.61,0.00013544,2]
[404538137,1770263441592,-157.766732,0.00013682,2]
[404538138,1770263441605,-11170.72919911,0.00013682,2]
[404538139,1770263441615,-19706.49041607,0.00013682,2]
[404538140,1770263441625,-29479.73109465,0.00013682,2]
[404538141,1770263441638,-39887.1198,0.00013682,2]
[404538142,1770263441648,-500.0,0.00013698,2]
[404538143,1770263441657,-500.0,0.00013698,2]
[404538144,1770263441667,-500.0,0.00013698,2]
[404538145,1770263441677,-500.0,0.00013698,2]
[404538146,1770263441687,-500.0,0.00013698,2]
[404538147,1770263441696,-590.10761957,0.00013698,2]
[404538148,1770263441706,-500.0,0.00013698,2]
[404538149,1770263441716,-500.0,0.00013698,2]
[404538150,1770263441726,-288.02611632,0.00013698,2]
[404538151,1770263441736,-500.0,0.00013698,2]
[404538152,1770263441747,-507.70655637,0.00013698,2]
[404538153,1770263441759,-500.0,0.00013698,2]
[404538154,1770263441769,-500.0,0.00013698,2]
[404538155,1770263441779,-198.00308747,0.00013698,2]
[404538156,1770263442111,-500.0,0.00013698,2]
[404538157,1770263442126,-500.0,0.00013698,2]
[404538158,1770263442137,-500.0,0.00013698,2]
[404538159,1770263442147,-405.3888533,0.00013698,2]
[404538160,1770263442157,-500.0,0.00013698,2]
[404538161,1770263442167,-500.0,0.00013698,2]
[404538162,1770263442177,-447.07793737,0.00013698,2]
[404538163,1770263442186,-500.0,0.00013698,2]
[404538164,1770263442196,-500.0,0.00013698,2]
[404538165,1770263442207,-500.0,0.00013698,2]
[404538166,1770263442218,-500.0,0.00013698,2]
[404538167,1770263442227,-500.0,0.00013698,2]
[404538168,1770263442237,-500.0,0.00013698,2]
[404538169,1770263442246,-500.0,0.00013698,2]
[404538170,1770263442258,-418.4948437,0.00013698,2]
[404538171,1770263442267,-500.0,0.00013698,2]
[404538172,1770263442276,-500.0,0.00013698,2]
[404538173,1770263442292,-500.0,0.00013698,2]
[404538174,1770263442304,-500.0,0.00013698,2]
[404538175,1770263442313,-519.87500599,0.00013698,2]
[404538176,1770263442323,-322.43,0.00013698,2]
[404538177,1770263442332,-500.0,0.00013698,2]
[404538178,1770263442342,-179.5772256,0.00013698,2]
[404538179,1770263442351,-519.49,0.00013698,2]
[404538180,1770263442360,-519.49,0.00013698,2]
[404538181,1770263442370,-519.49,0.00013698,2]
[404538182,1770263442379,-519.49,0.00013698,2]
[404538183,1770263442389,-519.49,0.00013698,2]
[404538184,1770263442398,-519.49,0.00013698,2]
[404538185,1770263442407,-519.49,0.00013698,2]
[404538186,1770263442417,-519.49,0.00013698,2]
[404538187,1770263442426,-519.49,0.00013698,2]
[404538188,1770263442437,-519.49,0.00013698,2]
[404538189,1770263442446,-519.49,0.00013698,2]
[404538190,1770263442455,-519.49,0.00013698,2]
[404538191,1770263442464,-519.49,0.00013698,2]
[404538192,1770263442474,-519.49,0.00013698,2]
[404538193,1770263442483,-519.49,0.00013698,2]
[404538194,1770263442492,-519.49,0.00013698,2]
[404538195,1770263442501,-519.49,0.00013698,2]
[404538196,1770263442511,-519.49,0.00013698,2]
[404538197,1770263442520,-500.0,0.00013698,2]
[404538198,1770263442529,-500.0,0.00013698,2]
[404538199,1770263442539,-500.0,0.00013698,2]
[404538200,1770263442548,-500.0,0.00013698,2]
[404538201,1770263442557,-500.0,0.00013698,2]
[404538202,1770263442566,-500.0,0.00013698,2]
[404538203,1770263442576,-500.0,0.00013698,2]
[404538204,1770263442584,-500.0,0.00013698,2]
[404538205,1770263442594,-350.20210057,0.00013698,2]
[404538206,1770263442607,-500.0,0.00013698,2]
[404538207,1770263442616,-500.0,0.00013698,2]
[404538208,1770263442626,-500.0,0.00013698,2]
[404538209,1770263442635,-500.0,0.00013698,2]
[404538210,1770263442644,-500.0,0.00013698,2]
[404538211,1770263442653,-500.0,0.00013698,2]
[404538212,1770263442662,-500.0,0.00013698,2]
[404538213,1770263442673,-500.0,0.00013698,2]
[404538214,1770263442683,-500.0,0.00013698,2]
[404538215,1770263442691,-500.0,0.00013698,2]
[404538216,1770263442701,-500.0,0.00013698,2]
[404538217,1770263442711,-500.0,0.00013698,2]
[404538218,1770263442720,-500.0,0.00013698,2]
[404538219,1770263442729,-500.0,0.00013698,2]
[404538220,1770263442738,-500.0,0.00013698,2]
[404538221,1770263442748,-500.0,0.00013698,2]
[404538222,1770263442758,-500.0,0.00013698,2]
[404538223,1770263442767,-500.0,0.00013698,2]
[404538224,1770263442777,-500.0,0.00013698,2]
[404538225,1770263442786,-160.87387984,0.00013698,2]
[404538226,1770263442796,-2482.56,0.00013699,2]
[404538227,1770263442811,-200.0,0.00013699,2]
[404538228,1770263442826,-711.92,0.00013699,2]
[404538229,1770263442836,-1939.59,0.00013699,2]
[404538230,1770263442845,-3323.5811516,0.00013714,2]
[404538231,1770263442859,-5530.0,0.000138,3]
[404538232,1770263442869,-500.0,0.00013836,2]
[404538233,1770263442879,-666.0,0.00013917,2]
[404538234,1770263442889,-101490.4536886,0.00013918,2]
[404538235,1770263442899,-322.43,0.00013972,2]
[404538236,1770263442908,-13099.73275899,0.00014194,2]
[404538237,1770263442918,-2863.81060744,0.0001421,2]
[404538238,1770263442928,-1600.0,0.00014244,2]
[404538239,1770263442938,-322.43,0.00014245,2]
[404538240,1770263442948,-519.49,0.00014285,2]
[404538241,1770263442957,-2550.17704393,0.00014352,2]